bitfinex-derivatives/quotes_SOLF0:USTF0_20250523
["timestamp","ask_amount","ask_price","bid_price","bid_amount"]
[1748010319636,0.03598508,180.2,180.16,0.03554893]
[1748010320139,5.58398508,180.2,180.16,5.58444893]
[1748010320929,0.03598508,180.2,180.18,5.5483]
[1748010321334,0.03598508,180.2,180.16,0.03554893]
[1748010321530,0.03598508,180.2,180.17,5.5486]
[1748010321736,0.03598508,180.2,180.16,0.03554893]
[1748010321936,5.58398508,180.2,180.16,5.58434893]
[1748010322136,5.58398508,180.2,180.16,0.03554893]
[1748010322336,0.03598508,180.2,180.16,0.03554893]
[1748010322539,0.03598508,180.2,180.19,5.5481]
[1748010323832,128.5,180.27,180.18,105.42]
[1748010324939,0.03622307,180.24,180.21,5.58818551]
[1748010325428,0.03622307,180.24,180.21,0.04068551]
[1748010325940,5.58292307,180.24,180.21,0.04068551]
[1748010326642,0.03622307,180.24,180.21,0.04068551]
[1748010327051,5.5469,180.23,180.21,0.04068551]
[1748010327235,0.03622307,180.24,180.21,0.04068551]
[1748010328340,5.5471,180.23,180.21,0.04068551]
[1748010328641,5.5472,180.22,180.21,0.04068551]
[1748010329043,0.03622307,180.24,180.21,0.04068551]
[1748010330344,0.03622307,180.24,180.21,5.58808551]
[1748010330938,5.58292307,180.24,180.21,5.58808551]
[1748010331340,0.03622307,180.24,180.22,5.5472]
[1748010331947,0.03622307,180.24,180.21,5.58808551]
[1748010332247,0.03622307,180.24,180.21,0.04068551]
[1748010332846,5.5469,180.23,180.21,0.04068551]
[1748010333446,5.5472,180.22,180.21,0.04068551]
[1748010334041,142.71839889,180.22,180.11,4.95374807]
[1748010334246,8.69839889,180.17,180.07,105.42]
[1748010334448,5.5499,180.14,180.07,105.42]
[1748010334748,128.06,180.16,180.06,128.48]
[1748010334948,0.03849359,180.12,180.1,5.5507]
[1748010335350,0.03849359,180.12,180.09,0.0353298]
[1748010336243,0.03849359,180.12,180.11,5.5506]
[1748010337141,0.03849359,180.12,180.09,0.0353298]
[1748010337647,0.03849359,180.12,180.11,5.5506]
[1748010339160,299.08,180.2,180.09,0.0353298]
[1748010339449,10.68839889,180.21,180.07,105.42]
[1748010339642,1.99,180.21,180.07,105.42]
[1748010340046,0.03773294,180.16,180.15,5.5493]
[1748010340351,0.03773294,180.16,180.15,110.9693]
[1748010341051,128.08,180.23,180.22,5.5471]
[1748010341251,128.08,180.23,180.15,105.42]
[1748010341452,128.08,180.23,180.22,5.5471]
[1748010342251,128.08,180.23,180.21,0.04276226]
[1748010342444,0.03559201,180.24,180.21,0.04276226]
[1748010342751,0.03559201,180.24,180.23,5.5468]
[1748010344653,8.58888646,180.32,180.23,128.08]
[1748010345246,8.58888646,180.32,180.3,5.5444]
[1748010349262,1.90702552,180.32,180.29,0.03558183]
[1748010349766,1.90702552,180.32,180.29,5.58038183]
[1748010350068,1.90702552,180.32,180.29,0.03558183]
[1748010350459,1.90702552,180.32,180.29,5.58038183]
[1748010351870,1.90702552,180.32,180.3,5.5446]
[1748010352169,0.03982552,180.32,180.29,105.41558183]
[1748010352369,20.89406322,180.42,180.29,105.41558183]
[1748010352370,2.0223,180.4,180.29,233.43558183]
[1748010352674,1.8834,180.42,180.29,233.4]
[1748010353065,5.5416,180.41,180.29,233.4]
[1748010353368,0.03846382,180.37,180.33,0.04018165]
[1748010353572,0.03846382,180.37,180.36,5.5428]
[1748010353765,0.03846382,180.37,180.36,110.9228]
[1748010354178,0.03846382,180.37,180.36,105.38]
[1748010354564,0.03846382,180.37,180.33,0.04018165]
[1748010355068,5.58126382,180.37,180.33,0.04018165]
[1748010355665,5.543,180.36,180.33,0.04018165]
[1748010355865,0.03846382,180.37,180.33,0.04018165]
[1748010356265,5.5429,180.36,180.33,0.04018165]
[1748010356562,0.03846382,180.37,180.33,0.04018165]
[1748010357573,5.5434,180.35,180.33,0.04018165]
[1748010357773,0.03846382,180.37,180.33,0.04018165]
[1748010357971,5.5435,180.34,180.33,0.04018165]
[1748010359065,174.8848,180.36,180.26,127.98]
[1748010359376,174.8848,180.36,180.24,481.0805]
[1748010359377,14.17237676,180.34,180.25,105.34]
[1748010359575,5.5459,180.26,180.25,105.34]
[1748010359874,127.98,180.32,180.25,105.34]
[1748010360076,5.58347773,180.3,180.27,0.03987721]
[1748010360781,0.03877773,180.3,180.27,0.03987721]
[1748010362588,0.03877773,180.3,180.29,5.545]
[1748010364177,480.8922,180.39,180.28,127.64]
[1748010364681,127.62,180.4,180.28,127.64]
[1748010365078,5.542,180.39,180.28,127.64]
[1748010365285,0.03860052,180.35,180.32,0.04094447]
[1748010365475,0.03860052,180.35,180.33,105.34]
[1748010366085,0.03860052,180.35,180.34,5.5435]
[1748010368983,5.2e-07,180.35,180.34,5.5435]
[1748010373186,5.2e-07,180.35,180.32,0.04094447]
[1748010373487,5.2e-07,180.35,180.33,105.32]
[1748010373681,5.2e-07,180.35,180.34,5.5435]
[1748010375278,1.9631,180.46,180.42,5.5408]
[1748010375474,1.9631,180.46,180.42,105.32]
[1748010375983,1.9631,180.46,180.43,5.5407]
[1748010376185,7.54259496,180.46,180.43,0.04152808]
[1748010376385,2.00259496,180.46,180.43,0.04152808]
[1748010377086,2.00259496,180.46,180.42,105.32]
[1748010377979,7.54259496,180.46,180.43,5.5404]
[1748010378181,2.00259496,180.46,180.43,0.04268438]
[1748010378486,0.03949496,180.46,180.43,0.04268438]
[1748010378688,0.03949496,180.46,180.44,5.5404]
[1748010379187,0.03949496,180.46,180.45,5.5401]
[1748010380991,0.03949496,180.46,180.43,0.04268438]
[1748010381688,0.03949496,180.46,180.44,5.5402]
[1748010381894,0.03949496,180.46,180.43,0.04268438]
[1748010382188,0.03949496,180.46,180.44,5.5401]
[1748010382391,0.03949496,180.46,180.43,0.04268438]
[1748010383191,5.5404,180.44,180.43,0.04268438]
[1748010383393,0.03949496,180.46,180.43,0.04268438]
[1748010383891,5.5404,180.44,180.43,0.04268438]
[1748010384091,0.03949496,180.46,180.4,105.28]
[1748010385087,5.57939496,180.46,180.42,5.5408]
[1748010385391,0.03949496,180.46,180.41,0.04186704]
[1748010386294,606.4,180.57,180.41,0.04186704]
[1748010386591,3.716,180.56,180.41,1.965]
[1748010386892,3.716,180.56,180.48,5.5391]
[1748010387082,3.716,180.56,180.48,105.28]
[1748010387284,0.03925614,180.54,180.5,0.03533411]
[1748010387897,5.5378,180.53,180.5,0.03533411]
[1748010388289,0.03925614,180.54,180.5,0.03533411]
[1748010388491,5.5382,180.51,180.5,0.03533411]
[1748010388693,0.03925614,180.54,180.5,0.03533411]
[1748010389102,5.5382,180.52,180.5,0.03533411]
[1748010389291,0.03925614,180.54,180.5,0.03533411]
[1748010390101,5.5378,180.53,180.5,5.57383411]
[1748010390297,0.03925614,180.54,180.5,0.03533411]
[1748010391099,127.55925614,180.54,180.5,0.03533411]
[1748010391300,5.5382,180.51,180.5,0.03533411]
[1748010391500,127.55925614,180.54,180.5,0.03533411]
[1748010391800,5.5382,180.51,180.5,0.03533411]
[1748010392498,127.55925614,180.54,180.45,105.26]
[1748010392698,127.52,180.54,180.45,105.26]
[1748010393098,5.538,180.52,180.48,5.539]
[1748010393395,5.57357051,180.52,180.48,5.57727581]
[1748010393596,5.5383,180.51,180.48,5.57737581]
[1748010393797,0.03557051,180.52,180.48,0.03827581]
[1748010394202,5.57377051,180.52,180.48,5.57727581]
[1748010394407,0.03557051,180.52,180.48,0.03827581]
[1748010396105,5.5389,180.49,180.48,0.03827581]
[1748010397303,5.5386,180.5,180.48,0.03827581]
[1748010397902,5.5389,180.49,180.48,0.03827581]
[1748010398394,0.03557051,180.52,180.48,0.03827581]
[1748010399103,5.5389,180.49,180.48,0.03827581]
[1748010399306,171.0,180.51,180.42,127.52]
[1748010399507,1.8657,180.48,180.42,232.78]
[1748010399699,5.5399,180.46,180.43,5.5405]
[1748010399900,1.8657,180.48,180.42,232.78]
[1748010400306,0.03910327,180.47,180.44,5.5402]
[1748010400505,0.03910327,180.47,180.43,0.03948825]
[1748010401209,2.03890327,180.47,180.32,127.14]
[1748010401410,5.5417,180.4,180.33,105.26]
[1748010401905,127.14,180.43,180.33,105.26]
[1748010402106,0.03933115,180.4,180.36,0.03590844]
[1748010402309,0.03933115,180.4,180.31,4.95374807]
[1748010402506,14.17237676,180.38,180.27,111.86499743]
[1748010402701,129.1398,180.37,180.27,6.60499743]
[1748010402896,14.17237676,180.34,180.27,6.60499743]
[1748010403103,5.5453,180.28,180.27,6.60499743]
[1748010403599,5.5456,180.27,180.26,0.03734678]
[1748010403909,0.03990879,180.29,180.2,232.4]
[1748010404207,127.14,180.31,180.2,105.26]
[1748010404609,141.31237676,180.31,180.16,148.19302049]
[1748010404812,141.31237676,180.31,180.17,105.26]
[1748010405011,0.04103064,180.26,180.17,105.26]
[1748010405610,0.04103064,180.26,180.16,148.19302049]
[1748010405910,0.04103064,180.26,180.23,5.5466]
[1748010406209,0.04103064,180.26,180.18,105.26]
[1748010406809,0.04103064,180.26,180.25,5.5462]
[1748010407007,6.72168646,180.4,180.25,5.54]
[1748010407209,6.72168646,180.4,180.26,107.1472]
[1748010407412,7.5424,180.37,180.31,5.5443]
[1748010407605,7.5424,180.37,180.28,127.2]
[1748010407806,1.9998,180.37,180.28,127.2]
[1748010408001,0.03872026,180.34,180.31,0.04203831]
[1748010408704,0.03872026,180.34,180.33,5.5438]
[1748010409213,0.03872026,180.34,180.32,5.544]
[1748010409614,0.03872026,180.34,180.31,0.04203831]
[1748010411716,5.5438,180.33,180.31,0.04203831]
[1748010411918,0.03872026,180.34,180.31,0.04203831]
[1748010412416,0.03872026,180.34,180.33,5.5438]
[1748010412618,0.03872026,180.34,180.31,0.04203831]
[1748010412818,0.03872026,180.34,180.32,5.5438]
[1748010413117,0.03872026,180.34,180.31,0.04203831]
[1748010414213,0.03872026,180.34,180.32,5.5439]
[1748010414416,0.03872026,180.34,180.31,0.04203831]
[1748010414814,0.03872026,180.34,180.33,5.5438]
[1748010418018,0.03872026,180.34,180.32,132.7841]
[1748010418224,0.03872026,180.34,180.32,238.1041]
[1748010418520,0.03872026,180.34,180.32,232.56]
[1748010418722,0.03872026,180.34,180.33,5.5438]
[1748010420219,0.03872026,180.34,180.32,232.56]
[1748010420426,0.03872026,180.34,180.32,105.32]
[1748010420728,0.03872026,180.34,180.33,5.5438]
[1748010421020,127.22,180.43,180.33,127.22]
[1748010421224,6.72168646,180.51,180.33,621.1967]
[1748010421523,6.72168646,180.51,180.35,14.17237676]
[1748010421914,0.03778639,180.45,180.41,0.03683431]
[1748010422119,0.03778639,180.45,180.42,105.32]
[1748010422826,0.03778639,180.45,180.43,5.5404]
[1748010423225,0.03778639,180.45,180.42,105.32]
[1748010423528,0.03778639,180.45,180.43,5.5404]
[1748010423827,0.03778639,180.45,180.42,105.32]
[1748010424822,0.03778639,180.45,180.42,110.8609]
[1748010425019,0.03778639,180.45,180.42,105.32]
[1748010425328,0.03778639,180.45,180.42,110.8608]
[1748010425526,0.03778639,180.45,180.42,105.32]
[1748010426521,0.03778639,180.45,180.41,0.03683431]
[1748010426522,5.5404,180.44,180.41,0.03683431]
[1748010426920,0.03778639,180.45,180.41,0.03683431]
[1748010427128,5.5406,180.44,180.41,0.03683431]
[1748010427427,5.5406,180.44,180.41,5.57813431]
[1748010427626,5.5406,180.44,180.41,0.03683431]
[1748010427925,0.03778639,180.45,180.41,0.03683431]
[1748010428333,0.03778639,180.45,180.44,5.5404]
[1748010428624,0.03778639,180.45,180.42,128.7734]
[1748010429027,0.03778639,180.45,180.42,126.82]
[1748010429421,0.03778639,180.45,180.43,5.5404]
[1748010429623,0.03778639,180.45,180.42,126.82]
[1748010429824,0.03778639,180.45,180.41,0.03683431]
[1748010431121,126.8,180.59,180.42,105.28]
[1748010431321,132.648,180.59,180.43,130.656]
[1748010431628,5.5369,180.56,180.43,130.656]
[1748010431921,132.648,180.59,180.43,130.656]
[1748010432122,0.03946878,180.51,180.5,5.5383]
[1748010432324,0.03890942,180.52,180.5,5.5383]
[1748010432523,0.03914194,180.53,180.49,0.03680273]
[1748010432721,0.03914194,180.53,180.49,5.57540273]
[1748010432921,0.03914194,180.53,180.49,0.03680273]
[1748010433327,0.03914194,180.53,180.5,5.5383]
[1748010433526,0.03914194,180.53,180.49,0.03680273]
[1748010433927,0.03914194,180.53,180.52,5.5379]
[1748010435228,0.03914194,180.53,180.51,5.5382]
[1748010435729,0.03914194,180.53,180.5,105.26]
[1748010436030,0.03914194,180.53,180.49,0.03680273]
[1748010436326,5.5379,180.52,180.49,0.03680273]
[1748010436526,0.03914194,180.53,180.49,0.03680273]
[1748010437031,5.5385,180.5,180.49,0.03680273]
[1748010437222,0.03914194,180.53,180.49,0.03680273]
[1748010437526,5.538,180.52,180.49,0.03680273]
[1748010437729,0.03914194,180.53,180.49,0.03680273]
[1748010439134,5.5385,180.5,180.49,0.03680273]
[1748010440626,171.0,180.52,180.49,0.03680273]
[1748010441128,176.5381,180.52,180.49,0.03680273]
[1748010441327,171.0,180.52,180.49,0.03680273]
[1748010441736,171.0,180.52,180.5,5.5383]
[1748010442538,171.0,180.52,180.49,0.03680273]
[1748010443428,0.03914194,180.53,180.5,105.24]
[1748010443627,0.03914194,180.53,180.52,5.5379]
[1748010445340,0.03914194,180.53,180.51,5.5382]
[1748010445540,0.03914194,180.53,180.5,105.24]
[1748010445839,0.03914194,180.53,180.51,5.538]
[1748010446138,0.03914194,180.53,180.5,105.24]
[1748010446839,5.57694194,180.53,180.5,105.24]
[1748010447037,0.03914194,180.53,180.5,105.24]
[1748010447337,0.03914194,180.53,180.51,5.538]
[1748010448137,0.03914194,180.53,180.52,5.5379]
[1748010448939,14.17237676,180.6,180.52,5.5379]
[1748010448940,5.5348,180.63,180.52,5.54]
[1748010449138,126.74,180.65,180.5,105.24]
[1748010449139,130.6764,180.67,180.53,1.9909]
[1748010449336,130.6764,180.67,180.54,126.74]
[1748010449938,0.03640185,180.62,180.6,5.5355]
[1748010450137,0.03640185,180.62,180.59,105.27942395]
[1748010450534,0.03640185,180.62,180.6,5.5352]
[1748010450736,0.03640185,180.62,180.59,105.27942395]
[1748010451526,0.03640185,180.62,180.59,231.99942395]
[1748010451734,1.8322,180.7,180.62,5.5347]
[1748010451933,1.8322,180.7,180.59,231.96]
[1748010452136,126.72,180.71,180.59,231.96]
[1748010452734,0.03707465,180.67,180.63,0.03646298]
[1748010453239,0.03707465,180.67,180.63,5.57086298]
[1748010453432,0.03707465,180.67,180.63,0.03646298]
[1748010453833,0.03707465,180.67,180.66,5.5336]
[1748010454030,0.03707465,180.67,180.66,110.7536]
[1748010454237,0.03707465,180.67,180.66,105.22]
[1748010455045,5.57037465,180.67,180.66,105.22]
[1748010455545,0.03707465,180.67,180.66,105.22]
[1748010456445,5.57037465,180.67,180.66,105.22]
[1748010459148,0.03707465,180.67,180.66,105.22]
[1748010460048,0.03707465,180.67,180.63,0.03646298]
[1748010461950,5.5342,180.64,180.63,0.03646298]
[1748010462754,5.5349,180.62,180.61,105.18]
[1748010462946,5.5349,180.62,180.52,1.8243]
[1748010462947,14.17237676,180.64,180.52,126.28]
[1748010463251,1.8932,180.64,180.53,105.16]
[1748010463450,1.8932,180.64,180.53,106.9843]
[1748010463652,0.04021641,180.6,180.57,0.03555102]
[1748010464040,0.04021641,180.6,180.58,5.5361]
[1748010464254,0.04021641,180.6,180.57,0.03555102]
[1748010466548,0.04021641,180.6,180.59,5.5358]
[1748010469159,0.04021641,180.6,180.58,5.536]
[1748010469358,0.04021641,180.6,180.57,126.31555102]
[1748010469549,0.04021641,180.6,180.57,0.03555102]
[1748010469757,5.5358,180.59,180.57,0.03555102]
[1748010470264,5.5361,180.58,180.57,0.03555102]
[1748010470964,5.5376,180.53,180.51,126.28]
[1748010471164,5.7361,180.59,180.51,126.28]
[1748010471466,5.7361,180.59,180.52,5.5378]
[1748010471666,5.7361,180.59,180.51,126.28]
[1748010471960,0.04165482,180.57,180.53,0.04017044]
[1748010472164,5.57805482,180.57,180.54,5.537]
[1748010472362,5.57805482,180.57,180.53,0.04017044]
[1748010472764,0.04165482,180.57,180.53,0.04017044]
[1748010473160,0.04165482,180.57,180.53,5.57777044]
[1748010473465,0.04165482,180.57,180.53,0.04017044]
[1748010475059,0.04165482,180.57,180.53,5.57777044]
[1748010475467,5.5367,180.56,180.53,5.57777044]
[1748010475670,0.04165482,180.57,180.53,0.04017044]
[1748010475963,5.5373,180.54,180.53,0.04017044]
[1748010476166,126.32,180.55,180.45,105.2]
[1748010476365,171.0,180.54,180.45,105.2]
[1748010476565,5.5387,180.5,180.45,105.2]
[1748010477063,0.03817166,180.49,180.46,0.04215933]
[1748010477265,0.03817166,180.49,180.47,5.5394]
[1748010477562,0.03817166,180.49,180.46,0.04215933]
[1748010477872,0.03817166,180.49,180.48,5.5392]
[1748010479671,0.03817166,180.49,180.47,5.5394]
[1748010480074,0.03817166,180.49,180.46,0.04215933]
[1748010480863,5.5395,180.47,180.46,0.04215933]
[1748010481067,5.88167166,180.49,180.46,0.04215933]
[1748010481469,5.5394,180.48,180.46,0.04215933]
[1748010481667,5.88167166,180.49,180.46,0.04215933]
[1748010481878,2.04447166,180.49,180.46,0.04215933]
[1748010482270,0.03817166,180.49,180.46,0.04215933]
[1748010483076,14.21054842,180.49,180.35,5.00006636]
[1748010483277,14.17237676,180.45,180.38,5.5421]
[1748010483471,140.51237676,180.45,180.36,105.22]
[1748010483771,14.17237676,180.41,180.34,5.00006636]
[1748010483978,126.34,180.4,180.34,5.00006636]
[1748010484188,14.17237676,180.37,180.32,6.60499743]
[1748010484475,1.9057,180.36,180.25,118.42999487]
[1748010484679,14.17237676,180.33,180.25,13.20999487]
[1748010484871,5.5453,180.29,180.25,13.20999487]
[1748010485270,5.58038262,180.29,180.25,13.20999487]
[1748010485471,5.5454,180.28,180.25,13.20999487]
[1748010485679,0.03508262,180.29,180.25,13.20999487]
[1748010486278,14.20745938,180.29,180.16,129.8143]
[1748010486476,5.5468,180.23,180.15,105.24]
[1748010486777,0.03784726,180.21,180.15,105.24]
[1748010488478,0.03784726,180.21,180.18,5.5481]
[1748010488880,0.03784726,180.21,180.15,105.24]
[1748010489073,0.03784726,180.21,180.12,128.0061]
[1748010489267,0.03784726,180.21,180.12,231.28]
[1748010489471,126.04,180.2,180.09,105.28]
[1748010489667,0.04190112,180.16,180.09,105.28]
[1748010490279,0.04190112,180.16,180.08,709.84]
[1748010490481,126.1,180.15,180.03,126.1]
[1748010490672,0.0377419,180.11,180.03,126.1]
[1748010490871,0.0377419,180.11,180.06,5.5518]
[1748010491067,0.0377419,180.11,180.02,109.0391]
[1748010491068,0.0377419,180.11,180.02,1.8392]
[1748010491274,126.1,180.1,180.0,1.9316]
[1748010491567,0.04157646,180.07,180.0,1.9316]
[1748010491982,0.04157646,180.07,180.03,5.5528]
[1748010492378,0.04157646,180.07,180.0,1.9316]
[1748010492686,0.04157646,180.07,180.04,5.5527]
[1748010492874,0.04157646,180.07,180.0,1.9316]
[1748010493477,2.0118,180.15,180.0,1.9316]
[1748010493681,126.16,180.17,180.14,5.5496]
[1748010494085,126.16,180.21,180.09,105.38]
[1748010494285,126.16,180.21,180.09,107.264]
[1748010494587,0.03903236,180.17,180.13,0.03518781]
[1748010494788,0.03903236,180.17,180.15,5.549]
[1748010494986,0.03903236,180.17,180.13,0.03518781]
[1748010495781,5.5459,180.26,180.21,5.5472]
[1748010496482,5.5462,180.25,180.19,5.5478]
[1748010496685,14.17237676,180.27,180.17,105.38]
[1748010496887,0.0380696,180.24,180.2,0.03530039]
[1748010497689,5.5471,180.23,180.2,0.03530039]
[1748010497885,0.0380696,180.24,180.2,0.03530039]
[1748010498092,126.18,180.23,180.11,231.56]
[1748010498294,5.5475,180.21,180.11,231.56]
[1748010498485,126.18,180.23,180.11,231.56]
[1748010498991,0.04257628,180.19,180.15,0.03865955]
[1748010499490,5.59067628,180.19,180.15,0.03865955]
[1748010499988,0.04257628,180.19,180.15,0.03865955]
[1748010500188,0.04257628,180.19,180.16,5.5489]
[1748010500385,0.04257628,180.19,180.15,0.03865955]
[1748010500788,0.04257628,180.19,180.16,126.2]
[1748010501088,0.04257628,180.19,180.18,5.5484]
[1748010501987,0.04257628,180.19,180.17,5.5486]
[1748010502185,0.04257628,180.19,180.16,126.2]
[1748010502387,0.04257628,180.19,180.15,0.03865955]
[1748010502991,0.04257628,180.19,180.15,5.58785955]
[1748010503186,0.04257628,180.19,180.15,0.03865955]
[1748010503585,5.549,180.16,180.15,0.03865955]
[1748010503892,5.549,180.16,180.1,5.5506]
[1748010503893,126.2,180.16,180.08,126.2]
[1748010504087,126.2,180.16,180.05,2.0153]
[1748010504293,171.0,180.15,180.04,231.6]
[1748010504993,0.04169744,180.11,180.04,231.6]
[1748010505992,0.04169744,180.11,180.08,5.5512]
[1748010506191,0.04169744,180.11,180.04,231.6]
[1748010506593,0.04169744,180.11,180.08,5.5512]
[1748010506796,0.04169744,180.11,180.04,231.6]
[1748010506992,5.59219744,180.11,180.04,231.6]
[1748010507193,0.04169744,180.11,180.04,126.2]
[1748010508095,0.04169744,180.11,180.1,5.5508]
[1748010509800,0.04169744,180.11,180.04,126.2]
[1748010510500,5.59229744,180.11,180.04,126.2]
[1748010510700,0.04169744,180.11,180.06,5.5518]
[1748010511202,0.04169744,180.11,180.04,231.62]
[1748010511801,5.59239744,180.11,180.06,5.552]
[1748010512001,0.04169744,180.11,180.06,5.552]
[1748010512302,0.04169744,180.11,180.04,126.2]
[1748010512501,5.59219744,180.11,180.04,126.2]
[1748010513003,5.59219744,180.11,180.07,5.5516]
[1748010513209,0.04169744,180.11,180.04,126.2]
[1748010514609,5.5515,180.08,180.04,131.7527]
[1748010514807,5.5515,180.08,180.04,5.5527]
[1748010515294,0.04169744,180.11,180.03,5.5529]
[1748010515295,5.5518,180.07,180.03,5.5529]
[1748010515499,0.0377085,180.07,180.02,105.44]
[1748010515696,0.0377085,180.07,180.01,105.44]
[1748010516204,126.24,180.14,180.01,105.44]
[1748010516406,126.24,180.14,180.01,128.78239937]
[1748010516904,5.5508,180.11,180.01,128.78239937]
[1748010517107,126.24,180.14,180.01,128.78239937]
[1748010517307,0.03955705,180.09,180.06,0.03762554]
[1748010517514,0.03955705,180.09,180.07,5.5515]
[1748010518300,0.03955705,180.09,180.06,0.03762554]
[1748010518704,0.03955705,180.09,180.06,5.58942554]
[1748010519309,0.03955705,180.09,180.06,5.58962554]
[1748010519505,0.03955705,180.09,180.06,0.03762554]
[1748010520408,0.03955705,180.09,180.07,5.5517]
[1748010521209,0.03955705,180.09,180.06,0.03762554]
[1748010521707,5.59075705,180.09,180.06,0.03762554]
[1748010522213,5.5515,180.08,180.06,0.03762554]
[1748010522712,5.5517,180.07,180.06,0.03762554]
[1748010522909,0.03955705,180.09,180.06,0.03762554]
[1748010523302,5.5517,180.07,180.06,0.03762554]
[1748010524306,5.5515,180.08,180.06,0.03762554]
[1748010524513,0.03955705,180.09,180.06,5.58962554]
[1748010524708,0.03955705,180.09,180.06,0.03762554]
[1748010524913,5.59085705,180.09,180.06,0.03762554]
[1748010525617,5.5517,180.08,180.06,0.03762554]
[1748010525813,0.03955705,180.09,180.06,0.03762554]
[1748010527519,5.5515,180.08,180.06,0.03762554]
[1748010528017,5.5514,180.08,180.06,0.03762554]
[1748010528212,0.03955705,180.09,180.06,0.03762554]
[1748010528719,125.97955705,180.09,179.99,131.4942]
[1748010528922,3.8463,180.08,179.99,5.5542]
[1748010529719,5.5535,180.02,179.99,5.5542]
[1748010530111,0.03572475,180.05,179.97,107.3924]
[1748010531220,5.553,180.03,179.97,107.3924]
[1748010531819,0.03572475,180.05,179.95,105.48]
[1748010532016,0.03940119,180.02,179.95,105.48]
[1748010532915,5.59280119,180.02,179.98,5.5543]
[1748010533416,5.59280119,180.02,179.92,479.5]
[1748010533417,5.554,180.0,179.92,479.5]
[1748010533610,0.04266023,179.98,179.95,105.5]
[1748010534114,0.04266023,179.98,179.92,479.5]
[1748010534307,0.04266023,179.98,179.92,605.46]
[1748010534815,5.59726023,179.98,179.94,5.5556]
[1748010535119,5.59726023,179.98,179.92,605.46]
[1748010535414,0.04266023,179.98,179.92,605.46]
[1748010535918,0.04266023,179.98,179.97,5.5548]
[1748010536605,0.04266023,179.98,179.97,131.5348]
[1748010538817,150.15016973,180.13,179.97,131.54]
[1748010539120,135.95596718,180.13,179.98,3.9015]
[1748010539314,5.5511,180.1,179.99,105.52]
[1748010539619,5.5511,180.1,180.06,5.552]
[1748010539823,10.6840625,180.09,180.06,0.03725485]
[1748010540320,5.1328625,180.09,180.06,0.03725485]
[1748010541221,5.1328625,180.09,180.06,5.58905485]
[1748010541419,5.1328625,180.09,180.06,0.03725485]
[1748010541821,0.04079174,180.09,180.06,0.03725485]
[1748010542812,0.04079174,180.09,180.06,5.58915485]
[1748010543011,5.59219174,180.09,180.06,0.03725485]
[1748010543215,0.04079174,180.09,180.06,0.03725485]
[1748010543715,5.5517,180.07,180.06,0.03725485]
[1748010543921,140.17420255,180.08,179.95,1.8851]
[1748010544122,1.8811,180.06,179.96,231.48]
[1748010544319,1.8811,180.06,179.98,5.5545]
[1748010544821,0.03941469,180.04,180.0,0.02180957]
[1748010546619,5.59231469,180.04,180.0,5.57550957]
[1748010546924,5.59231469,180.04,180.0,0.02180957]
[1748010547422,0.03941469,180.04,180.0,0.02180957]
[1748010548923,0.03941469,180.04,180.0,5.57540957]
[1748010549126,0.03941469,180.04,180.0,0.02180957]
[1748010549419,0.03941469,180.04,180.01,5.5535]
[1748010549625,5.59231469,180.04,180.0,0.02180957]
[1748010549920,5.59231469,180.04,180.0,5.57550957]
[1748010550328,0.03941469,180.04,180.0,0.02180957]
[1748010551619,5.59221469,180.04,180.0,5.57570957]
[1748010551923,0.03941469,180.04,180.0,0.02180957]
[1748010552323,5.5533,180.02,180.0,0.02180957]
[1748010552927,5.5531,180.03,180.0,0.02180957]
[1748010553228,5.5531,180.03,180.0,5.57560957]
[1748010553526,5.5531,180.03,180.0,0.02180957]
[1748010553729,0.03941469,180.04,180.0,0.02180957]
[1748010553730,5.5534,180.02,180.0,0.02180957]
[1748010554325,5.5532,180.03,180.0,0.02180957]
[1748010554523,0.03941469,180.04,180.0,0.02180957]
[1748010554825,5.5536,180.01,180.0,0.02180957]
[1748010556224,5.5534,180.02,180.0,0.02180957]
[1748010556622,0.03941469,180.04,180.0,0.02180957]
[1748010556924,5.5535,180.02,180.0,0.02180957]
[1748010557528,0.03941469,180.04,180.0,0.02180957]
[1748010558026,5.5536,180.01,180.0,0.02180957]
[1748010560834,6.98287076,180.03,179.94,125.64]